Cogmind - Beta 17.1 @@@ ROGUE MODE // 2026.09.04 @ 13:43:13 Player: mmmmcheese Result: Destroyed by 7G-TED(R) with Subdweller Laser Performance ------------- Evolutions (0) 0 Regions Visited (2) 400 Robots Destroyed (4) 20 Value Destroyed (160) 160 Prototype IDs (0) 0 Alien Tech Used (0) 0 Bonus (0) 0 TOTAL SCORE: 580 Bonus ------- None Cogmind --------- Core Integrity 0/250 Matter 273/300 Energy 125/125 System Corruption 0% Temperature Cool (6) Movement Core (200) Ox3 Location -10/Subcaves Parts ------- > --- POWER (1) -------- Light Ion Engine > --- PROPULSION (2) --- (None) > --- UTILITY (2) ------ (None) > --- WEAPON (2) ------- Subdweller Machine Gun Subdweller Machine Gun > --- INVENTORY (5) ---- Subdweller Power Source Disposable Heat Sink Riot Gun Subdweller Laser Flamer Peak State ------------ > --- POWER ------------ Light Ion Engine > --- PROPULSION ------- Light Treads Compact Wheel > --- UTILITY ---------- Scrap Shield > --- WEAPON ----------- Subdweller Machine Gun Subdweller Machine Gun > --- INVENTORY -------- Subdweller Power Source Disposable Heat Sink Riot Gun Subdweller Laser Flamer [Rating: 12] Favorites ----------- Power Ion Engine Engine Ion Engine Propulsion Light Treads Treads Light Treads Wheel Compact Wheel Utility Scrap Shield Device Subdweller Optics Storage Large Storage Unit Protection Scrap Shield Weapon Subdweller Machine Gun Energy Gun Riot Gun Ballistic Gun Subdweller Machine Gun Build | -11 -10 -10 ------- Run | Yrd Mat Sub Slots Evolved . | . . . Power . | . . . Propulsion . | . . . Utility . | . . . Weapon . | . . . Parts Attached 18 | 7 1 10 Power 3 | 2 . 1 Engine 3 | 2 . 1 Core . | . . . Reactor . | . . . Propulsion 5 | 2 . 3 Treads 2 | 2 . . Leg . | . . . Wheel 3 | . . 3 Hover . | . . . Flight . | . . . Utility 4 | 1 1 2 Device 1 | . . 1 Storage 2 | 1 1 . Processor . | . . . Hackware . | . . . Protection 1 | . . 1 Artifact . | . . . Weapon 6 | 2 . 4 Energy Gun 1 | . . 1 Energy Cannon . | . . . Ballistic Gun 5 | 2 . 3 Ballistic Cannon . | . . . Launcher . | . . . Special Weapon . | . . . Impact Weapon . | . . . Slashing Weapon . | . . . Piercing Weapon . | . . . Special Melee Weapon . | . . . Unidentified Prototypes . | . . . Parts Lost 12 | . . 12 Power 2 | . . 2 Propulsion 5 | . . 5 Utility 2 | . . 2 Weapon 3 | . . 3 Highest Loss Streak 6 | . . 6 To Critical Strikes . | . . . Average Backups 4 | 1 3 5 Power 1 | . 1 1 Propulsion 1 | 1 2 . Utility 1 | . . 1 Weapon 1 | . . 1 Tool/Special . | . . . Unused Backups 3 | . . 3 Power . | . . . Propulsion . | . . . Utility 1 | . . 1 Weapon 2 | . . 2 Tool/Special . | . . . Average Slot Usage (%) 80 | . 96 79 Engine 13 | . 14 13 Treads 13 | . 28 12 Wheel 9 | . . 10 Device 1 | . . 1 Storage 8 | . 24 7 Protection 7 | . . 8 Ballistic Gun 25 | . 28 24 Peak Build Rating 12 | 6 7 12 Average Rating 8 | 4 6 9 On Entrance 4 | . 6 7 Avg Prop Armor Cover (%) 4 | . . 4 Naked Turns . | . . . Heaviest Build 33 | 13 33 33 Greatest Support 40 | 40 40 40 Greatest Overweight (x) 1 | . . 1 Average Overweight (x) . | . . . Largest Inventory Capacity 15 | 8 15 15 Average Capacity 9 | 7 13 9 Most Carried 9 | 3 3 9 Average Carried 4 | 1 3 5 Final Capacity 15 | 8 15 5 Final Carried 5 | 3 3 5 Class Distribution -------------------- 51% | Mutant 48% | Subdweller-Mutant Dominant Class ---------------- Mutant | -10/Materials Subdweller-Mutant | -10/Subcaves Resources | -11 -10 -10 ----------- Run | Yrd Mat Sub Matter Collected 491 | 248 . 243 Remotely . | . . . Salvage Created 188 | . . 188 Parts 7 | . . 7 Haulers Intercepted . | . . . Recyclers Shooed . | . . . Parts Field Recycled . | . . . Retrieved Matter . | . . . Parts Self-Destructed 2 | . . 2 Prevented . | . . . Parts Restored . | . . . Kills | -11 -10 -10 ------- Run | Yrd Mat Sub Combat Hostiles Destroyed 4 | . . 4 Guns 4 | . . 4 Classes Destroyed 1 | . . 1 Subdweller 4 | . . 4 Best Kill Streak 2 | . . 2 Combat Bots Only 2 | . . 2 Max Kills in Single Turn 1 | . . 1 Gunslinging . | . . . Exploded . | . . . Melee . | . . . Uniques/NPCs Destroyed . | . . . Combat | -11 -10 -10 -------- Run | Yrd Mat Sub Hostile Shots Fired 69 | . . 69 Missed 24 | . . 24 Hits 45 | . . 45 Projectile 45 | . . 45 AOE 13 | . . 13 Critical Strikes 1 | . . 1 Damage Taken 1460 | . . 1460 Core 258 | . . 258 Absorbed by Shields . | . . . Core Remaining (%) 100 | 100 . . Volleys Fired 36 | . . 36 Largest 2 | . . 2 Hottest 80 | . . 80 Shots Fired 71 | . . 71 Gun 71 | . . 71 Cannon . | . . . Launcher . | . . . Special . | . . . Kinetic 68 | . . 68 Thermal . | . . . Explosive . | . . . Electromagnetic 3 | . . 3 Robot Hit Streak 14 | . . 14 Robot Miss Streak 3 | . . 3 Penetration Max . | . . . Secondary Targets 1 | . . 1 Max Gunslinging Chain 1 | . . 1 Shots Hit Robots 53 | . . 53 Core Hits 14 | . . 14 Critical Kills . | . . . Critical Parts Destroyed . | . . . Critical Strikes . | . . . Melee Attacks . | . . . Impact . | . . . Slashing . | . . . Piercing . | . . . Sneak Attacks . | . . . Combat Hostiles . | . . . Follow-up Attacks . | . . . Damage Inflicted 751 | . . 751 Guns 751 | . . 751 Cannons . | . . . Explosions . | . . . Melee . | . . . Ramming . | . . . Kinetic 689 | . . 689 Thermal . | . . . Explosive . | . . . Electromagnetic 62 | . . 62 Impact . | . . . Slashing . | . . . Piercing . | . . . Highest Corruption . | . . . Average Corruption . | . . . Corruption Purged . | . . . Corruption Blocked . | . . . Overload Shots . | . . . Overflow Damage . | . . . Projectiles . | . . . Explosions . | . . . Melee . | . . . Knockbacks . | . . . Impact . | . . . Kinetic . | . . . Secondary . | . . . Self-Inflicted Damage . | . . . Shots . | . . . Rammed . | . . . Targets Rammed . | . . . Kicked . | . . . Crushed . | . . . Highest Temperature . | . . . Average Temperature . | . . . Received Heat Transfer 120 | . . 120 Siege Activations . | . . . Martial Activations . | . . . Shielding Activations . | . . . Robots Disrupted . | . . . Combat Hostiles . | . . . Robots Corrupted . | . . . Combat Hostiles . | . . . Parts Fried . | . . . Impact Corruptions . | . . . Robots Melted . | . . . Combat Hostiles . | . . . Parts Melted . | . . . Heat Transferred . | . . . Parts Sabotaged . | . . . Parts Stolen . | . . . Parts Stripped . | . . . Power Chain Reactions . | . . . Alert | -11 -10 -10 ------- Run | Yrd Mat Sub Maximum Alert Level . | . . . Low Security (%) 100 | 100 100 . Level 1 . | . . . Level 2 . | . . . Level 3 . | . . . Level 4 . | . . . Level 5 . | . . . High Security . | . . . Max Security . | . . . Peak Influence . | . . . Initial . | . . . Average . | . . . Influence Increases . | . . . Influence Decreases . | . . . Squads Dispatched . | . . . Investigation . | . . . Extermination . | . . . Reinforcement . | . . . Assault . | . . . Garrison . | . . . Intercept . | . . . Searches Triggered . | . . . Construction Impeded . | . . . Haulers Reinforced . | . . . Active Scanning Responses . | . . . Cargo Convoy Interrupts . | . . . Stealth | -11 -10 -10 --------- Run | Yrd Mat Sub Distress Signals . | . . . Communications Jammed . | . . . Distress Signals . | . . . Times Spotted 11 | . . 11 Peak Tracking Total 4 | . . 4 Tactical Retreats 3 | . . 3 Traps | -11 -10 -10 ------- Run | Yrd Mat Sub Traps Triggered . | . . . Indirectly . | . . . Trap Hack Attempts . | . . . Triggered . | . . . Disarmed . | . . . Reprogrammed . | . . . Reused . | . . . Traps Extracted . | . . . Installed . | . . . Triggered . | . . . Machines | -11 -10 -10 ---------- Run | Yrd Mat Sub Machines Disabled . | . . . Max in Single Turn . | . . . Machines Repaired . | . . . Machines Dismantled . | . . . Machines Sabotaged . | . . . Overloaded Fab Kills . | . . . Hacking | -11 -10 -10 --------- Run | Yrd Mat Sub Machines Accessed . | . . . Terminals . | . . . Fabricators . | . . . Repair Stations . | . . . Recycling Units . | . . . Scanalyzers . | . . . Garrison Access . | . . . Total Hacks . | . . . Successful . | . . . Failed . | . . . Catastrophic . | . . . Database Lockouts . | . . . Manual . | . . . Terminals . | . . . Fabricators . | . . . Repair Stations . | . . . Recycling Units . | . . . Scanalyzers . | . . . Garrison Access . | . . . Terminal Hacks . | . . . Fabricator Hacks . | . . . Repair Station Hacks . | . . . Recycling Unit Hacks . | . . . Scanalyzer . | . . . Garrison Access Hacks . | . . . Unauthorized Hacks . | . . . Terminals . | . . . Fabricators . | . . . Repair Stations . | . . . Recycling Units . | . . . Scanalyzers . | . . . Garrison Access . | . . . Data Cores Recovered . | . . . Used . | . . . Hacking Detections . | . . . Full Trace Events . | . . . Feedback Events . | . . . Feedback Blocked . | . . . Robot Schematics Acquired . | . . . Robots Built . | . . . Authchips . | . . . Time . | . . . Total Robot Build Rating . | . . . Part Schematics Acquired . | . . . Parts Built . | . . . Authchips . | . . . Time . | . . . Total Part Build Rating . | . . . Part Studies Acquired . | . . . Parts Repaired . | . . . Time . | . . . Parts Recycled . | . . . Recycled Matter . | . . . Retrieved Matter . | . . . Retrieved Components . | . . . Parts Scanalyzed . | . . . Part Schematics Acquired . | . . . Parts Damaged . | . . . Bothacking | -11 -10 -10 ------------ Run | Yrd Mat Sub Used RIF Installer . | . . . Robots Hacked . | . . . Non-combat . | . . . Combat . | . . . Robot Hacks Applied . | . . . Relay Couplers Released . | . . . Fabnet Peak Effective % . | . . . Robots Rewired . | . . . Allies Hacked . | . . . Hacks Repelled . | . . . Allies | -11 -10 -10 -------- Run | Yrd Mat Sub Total Allies . | . . . Largest Group . | . . . Highest-Rated Group . | . . . Highest-Rated Ally . | . . . Total Orders . | . . . Ally Attacks . | . . . Total Damage . | . . . Kills . | . . . Allies Corrupted . | . . . Allies Melted . | . . . Intel | -11 -10 -10 ------- Run | Yrd Mat Sub Active Infowar (turns) 153 | . . 153 Optics 153 | . . 153 Robot Analysis Total . | . . . Derelict Logs Recovered . | . . . Drone Launches . | . . . Drone Recoveries . | . . . Exploration | -11 -10 -10 ------------- Run | Yrd Mat Sub Turns Passed 1259 | 89 86 1084 Spaces Moved 843 | 50 48 745 Core 2 | 2 . . Treads 223 | 48 48 127 Legs . | . . . Wheels 618 | . . 618 Hover . | . . . Flight . | . . . Fastest Speed 50 | 50 160 100 Average Speed 127 | 155 160 123 Slowest Speed 240 | 160 160 240 Overloaded Moves . | . . . Propulsion Burnouts . | . . . Robots Hopped . | . . . Potential Cave-ins . | . . . Cave-ins Triggered . | . . . Exploration Rate (%) 18 | 4 8 43 Regions Visited 2 Branch Regions 1 Pre-discovered Areas . | . . . Known Exits Taken . | . . . Unknown Exits Taken 2 | 1 1 . Scrap Searched 5 | . . 5 Spaces Dug . | . . . Terrain Destroyed . | . . . Melee . | . . . Projectile . | . . . AOE . | . . . Terrain Rammed . | . . . Walls Destroyed . | . . . Machines Disabled . | . . . Actions | -11 -10 -10 --------- Run | Yrd Mat Sub Total 956 | 58 57 841 Wait 38 | . 9 29 Move 841 | 49 47 745 Hop . | . . . Pick Up 10 | 2 . 8 Fast Attach 11 | 6 1 4 Attach 5 | . . 5 Detach . | . . . Swap 7 | 1 . 6 Drop 2 | . . 2 Fire 36 | . . 36 Melee . | . . . Ram . | . . . Kick . | . . . Crush . | . . . Escape Stasis . | . . . Rewire . | . . . Trap . | . . . Miscellaneous 6 | . . 6 Route ------- -11/Scrapyard -10/Materials -10/Subcaves History --------- Turn | Location | Event 31 | -11/Scrapyard | Discovered new exit (range 16) 90 | -11/Scrapyard | Entered Materials 172 | -10/Materials | Discovered new exit (range 3) 176 | -10/Materials | Entered Subcaves 301 | -10/Subcaves | A swath of the cavern ceiling suddenly collapsed 314 | -10/Subcaves | Build established: Mutant 533 | -10/Subcaves | Core integrity fell below 50% 567 | -10/Subcaves | Lost 6 parts (2n1u3w) 659 | -10/Subcaves | Core integrity fell below 20% 958 | -10/Subcaves | Build established: Subdweller-Mutant 1206 | -10/Subcaves | Shifting Twisted Machinery released Shrapnel Trap 1232 | -10/Subcaves | Disturbed a concealed Subdweller 1237 | -10/Subcaves | Ambushed by Subdweller buried in earth 1260 | -10/Subcaves | Destroyed by 7G-TED(R) with Subdweller Laser Last Messages --------------- 01054_ Acquired 7 matter. Shrapnel Trap falls loose from the Twisted Machinery. 01225_ Searching scrap... 01225_ Found Shrapnel Trap. 01225_ Found 55 Matter. 01226_ Acquired 13 matter. 01228_ Searching scrap... 01228_ Found Sub. Laser. 01228_ Found Sub. Optics. 01228_ Found 47 Matter. 01232_ CN-6WT(R) angrily emerges from the Twisted Machinery. 01233_ Com. Wheel destroyed. 01235_ Lgt. Treads destroyed. 01238_ 7G-TED(R): "FREEEEDUMB!" 01239_ CN-6WT(R) destroyed. 01250_ Critical hit (Destroy). 01254_ Scrap Shield destroyed. 01256_ Destroyed Scrap Shield. Map ----- +----------------------------------------------------+ | ?????????????????????????????????????????????????? | | ?????????????????????????????????????????????????? | | ?????????????????????????????????????????????????? | | ?????????????????????????????????????????????????? | | ?????????????????????????????????????????????????? | | ????????????????????????????????????????????????## | | ?????????????????????????????????????????######## | | ????????????????????????????????????????## ## | | ????????????????????????????????????????# | | ????????????????????????????????????????# | | ???????????????????????????????????????# | | ??????????????????????????????????????# ### | | ??????????????????????????????????????# ####?? | | ??????????????????????????????????????######?????? | | ?????????????????????????????????????????????????? | | ?????????????????????????????????????????????????? | | ?????????????????????????????????????????????????? | | ?????????????????????????????????????????????????? | | ???????????????????????????#####?????????????????? | | ??????????????????????##### ##????????????????? | | ????????????????????### # #????????????????? | | ????????????????????# #????????????????? | | ???????????????????## #????????????????? | | ??????????????????## #????????????????? | | ??????????????????# R #????????????????? | | ????????????????????# @ #?????????????????? | | ???????????????###### #?????????????????? | | ??????????????##""" ; ##?????????????????? | | ?????????????##"""" ;###????????????????? | | ???????????### """ ##???????????????? | | ???????????# &" ## #???????????????? | | ??????????## #### ## ##???????????????? | | ??????????# ##??## ##?# #????????????????? | | ??????????# ##????####?## ##???????????????? | | ??????????# ##??????????# ##??????????????? | | ??????????## ###????????## #??????????????? | | ???????????## #????????# #??????????????? | | ??????????### #????????# #??????????????? | | ?????????## ######???# ##??????????????? | | ?????????# ### ##### #????????????????? | | ?????????# ## #?????????????????? | | ?????????# ##?????????????????? | | ?????????# ##?????????????????? | | ?????????# ## ###???????????????? | | ?????????# ## #### ##??????????????? | | ?????????# ## ###??# ######?????????? | | ?????????# ### #????# ##?##?????? | | ?????????# ##?#### ##### ### ####?? | | ?????????## #?####?# ## ?? | | ?#####????##??# ###### #### ## ## ? | +----------------------------------------------------+ Best States ------------- Heat Dissipation 25 Energy Generation 15 Energy Capacity 250 Matter Stores 300 Matter Capacity 300 Sight Range 21 Terrain Scan Density 10 Armor Coverage 800 Evasion (%) 40 Recoil Reduction 2 Item Schematics ----------------- None Robot Schematics ------------------ None Fabricated ------------ Nothing Repaired ---------- Nothing Studied --------- None Alien Tech Used ----------------- None Achievements -------------- None Challenges ------------ None Game ------ Seed PlasmaWeaponPlating Manual? 0 Play Time 00:11:04 Cumulative 116.9 hours Start 2026.09.04 @ 13:34:02 End 2026.09.04 @ 13:43:13 Sessions 1 Manual Loads 0 Difficulty Rogue Special Mode None Game No. 59 Rogue 59 Adventurer 0 Explorer 0 Win Type - Total 2 Types 2/0/0/0/0/0/0/0/0/0 Lore% 54 Gallery% 54 Achievement% 53 Wizard Run 0 Options --------- Layout 1 ASCII 0 Keyboard 0 Movement Numpad Keybinds 0 Fullscreen 1 Font 24/Smallcaps Map View 50x35 Zoom Use 0% Tactical HUD 1 Map Filters NONE Filters NONE Steam 1 RUN: 625f8b9a-07dc-4866-9bd2-a0154f2dd392